lending/lending_fUSD_20241120
["ID","MTS","AMOUNT","RATE_DAILY","PERIOD"]
[342795916,1732140898285,-2500.0,9.9e-05,2]
[342795918,1732141451127,-150.0,0.0001314,2]
[342795919,1732141501669,-150.0,0.00015342,2]
[342795920,1732141512840,-150.0,0.0001,2]
[342795921,1732141515842,-150.0,0.0001,2]
[342795922,1732141521149,-150.0,0.0001,2]
[342795923,1732141528461,300.0,9.9e-05,2]
[342795924,1732141528485,40000.5941,9.9e-05,2]
[342795925,1732141549454,-2000.0,9.9e-05,2]
[342795926,1732141557137,-4900.61828124,9.336e-05,2]
[342795927,1732141557158,-1788.41837794,9.9e-05,2]
[342795928,1732141626130,-150.0,9.899e-05,2]
[342795929,1732141626151,-355.87395882,9.9e-05,2]
[342795930,1732141632090,-400.0,9.6e-05,2]
[342795931,1732141632111,-57.10244752,9.9e-05,2]
[342795932,1732141646082,-1302.12667491,9.9e-05,2]
[342795947,1732141832131,-300.0,9.899e-05,2]
[342795948,1732141832141,-7651.97865,9.9e-05,2]
[342795950,1732141832154,-4129.33909557,9.9e-05,2]
[342795951,1732141832253,-1852.0,9.9e-05,2]
[342795952,1732141832265,-283.06794255,9.9e-05,2]
[342795953,1732141832375,-98611.86031176,9.9e-05,2]
[342795954,1732141832384,-500.0,9.973e-05,2]
[342795955,1732141832394,-33614.20595254,0.0001,2]
[342795956,1732141832499,-4132.41519528,0.0001,2]
[342795957,1732141832511,-8705.0,0.0001,2]
[342795958,1732141832624,-548.10548649,0.0001,2]
[342795978,1732141838139,-570.99328433,9.973e-05,2]
[342795979,1732141838148,-8239.54303201,0.0001,2]
[342795980,1732141838175,-999.9987984,0.0001,2]
[342795981,1732141838185,-12090.0,0.0001,2]
[342795982,1732141838293,-169485.00848577,0.0001,2]
[342795983,1732141838303,-4517570.89936903,0.0001,2]
[342795984,1732141838327,-2586.30599731,0.0001,2]
[342795985,1732141838340,-2850.26475934,0.0001,2]
[342795986,1732141838442,-388.09414053,0.0001,2]
[342795987,1732141838454,-4214.35254875,0.0001,2]
[342795988,1732141838479,-1944407.30144583,0.0001,2]
[342795989,1732141838506,-1425.769905,0.0001,2]
[342795990,1732141838624,-1302934.20040456,0.0001,2]
[342796052,1732141840259,-252.06,0.0001,2]
[342796053,1732141840269,-470.19724567,0.0001,2]
[342796056,1732141840345,-4221.63229795,0.0001,2]
[342796058,1732141840355,-9509.447793,0.0001,2]
[342796060,1732141840366,-31498.0000001,0.0001,2]
[342796062,1732141840378,-10797.768,0.0001,2]
[342796065,1732141840393,-1259.96086,0.0001,2]
[342796067,1732141840404,-1509.64259488,0.0001,2]
[342796070,1732141840421,-690.34200092,0.0001,2]
[342796330,1732141843128,-513.18500005,0.0001,2]
[342796354,1732141843343,-7061.48723894,0.0001,2]
[342796356,1732141843355,-2618.81,0.0001,2]
[342796358,1732141843367,-2550.18,0.0001,2]
[342796360,1732141843377,-5005.02743816,0.0001,2]
[342796370,1732141843464,-341.46735558,0.0001,2]
[342796373,1732141843476,-2185.95480085,0.0001,2]
[342796375,1732141843491,-22959.98544512,0.0001,2]
[342796377,1732141843502,-496.05836076,0.0001,2]
[342796474,1732141846118,-735.46605594,0.0001,2]
[342796475,1732141846130,-933.16364878,0.0001,2]
[342796476,1732141846141,-881.18783227,0.0001,2]
[342796477,1732141846151,-862.2,0.0001,2]
[342796478,1732141846163,-783.84,0.0001,2]
[342796479,1732141846177,-565.34496774,0.0001,2]
[342796480,1732141846188,-137052.17643417,0.0001,2]
[342796481,1732141846240,-1847.7204452,0.0001,2]
[342796482,1732141846275,-2076.42009453,0.0001,2]
[342796484,1732142739149,-1108.459,9.8e-05,2]
[342796485,1732142739171,-163.399,9.8e-05,2]
[342796486,1732142739194,-698.84307419,9.9e-05,2]
[342796487,1732142755091,-216.79413501,9.9e-05,2]
[342796488,1732142834131,-2592.3424908,9.9e-05,2]
[342796489,1732142834152,-1000.0,9.9e-05,2]
[342796490,1732142834174,-1093.61784358,9.9e-05,2]
[342796491,1732142839606,-409.39595642,9.9e-05,2]
[342796492,1732142839628,-1271.3027,9.9e-05,2]
[342796493,1732142839650,-32.23065046,9.91e-05,2]
[342796504,1732143032889,-150.0,9e-05,2]
[342796506,1732143032899,-300.0,9e-05,3]
[342796508,1732143032909,-700.0,9.1e-05,3]
[342796510,1732143032920,-150.0,9.111e-05,2]
[342796511,1732143032929,-280.49409564,9.2e-05,3]
[342796512,1732143032943,-819.50590436,9.2e-05,3]
[342796513,1732143032953,-150.0,9.222e-05,2]
[342796514,1732143032963,-150.0,9.333e-05,2]
[342796515,1732143032972,-150.0,9.444e-05,2]
[342796516,1732143032982,-150.0,9.556e-05,2]
[342796517,1732143032991,-150.0,9.667e-05,2]
[342796518,1732143033000,-150.0,9.778e-05,2]
[342796519,1732143033010,-150.0,9.889e-05,2]
[342796520,1732143033019,-913.58771527,9.9e-05,2]
[342796521,1732143033031,-1342.42776,9.9e-05,2]
[342796522,1732143033042,-1737.5141828,9.9e-05,2]
[342796523,1732143033055,-1349.56884193,9.9e-05,2]
[342796524,1732143033065,-652.0,9.9e-05,2]
[342796525,1732143033075,-1000.0,9.9e-05,2]
[342796526,1732143033084,-87.16879357,9.91e-05,2]
[342796527,1732143033096,-813.91313364,9.91e-05,2]
[342796528,1732143033108,-1596.0,9.91e-05,2]
[342796529,1732143033119,-495.00350775,9.91e-05,2]
[342796530,1732143033129,-1080.84189225,9.99e-05,2]
[342796531,1732143033154,-787.93476963,9.99e-05,2]
[342796532,1732143033164,-150.0,9.999e-05,2]
[342796533,1732143033174,-3126.73833565,0.0001,2]
[342796534,1732143033198,-15286.42474312,0.0001,2]
[342796535,1732143033221,-885.83,0.0001,2]
[342796536,1732143033244,-22056.10051179,0.0001,2]
[342796537,1732143033255,-454.92529219,0.0001,2]
[342796538,1732143033266,-1395.70067532,0.0001,2]
[342796542,1732143038334,-1400.0,9.3e-05,3]
[342796543,1732143038345,-1800.0,9.4e-05,3]
[342796544,1732143038355,-300.0,9.5e-05,3]
[342796545,1732143038364,-58342114.20219878,0.0001,2]
[342796546,1732143038374,-988.65512134,0.0001,2]
[342796547,1732143038385,-238.28406844,0.0001,2]
[342796548,1732143038394,-3000.0,0.0001,2]
[342796549,1732143038403,-330.49483324,0.0001,2]
[342796550,1732143038413,-6951.62797474,0.0001,2]
[342796551,1732143038422,-42050.16881733,0.0001,2]
[342796552,1732143038431,-10953.18499914,0.000109,2]
[342796553,1732143038440,-150.0,0.00010999,2]
[342796554,1732143038449,-2206.0,0.00015,2]
[342796555,1732143038458,-3000.0,0.00015,2]
[342796556,1732143038467,-10478.78,0.00015342,2]
[342796557,1732143038476,-41.15,0.00015342,2]
[342796558,1732143038485,-176.09,0.00015342,2]
[342796559,1732143038494,-155.07,0.00015342,2]
[342796560,1732143038503,-1000.0,0.00016762,2]
[342796561,1732143038512,-250.0,0.00017136,2]
[342796562,1732143038521,-150.99,0.00018533,2]
[342796563,1732143038530,-1000.0,0.00018857,2]
[342796564,1732143038539,-500.0,0.00019668,2]
[342796565,1732143038548,-3000.0,0.0002,2]
[342796566,1732143038557,-1000.0,0.00020952,2]
[342796567,1732143038566,-191.15,0.00021745,2]
[342796568,1732143038575,-176.09,0.00021745,2]
[342796569,1732143038585,-1000.0,0.00023047,2]
[342796570,1732143038595,-3000.0,0.00025,2]
[342796571,1732143038605,-1000.0,0.00025142,120]
[342796572,1732143038614,-1020.4356,0.0002811,10]
[342796573,1732143038623,-191.15,0.00028147,2]
[342796574,1732143038634,-176.09,0.00028147,2]
[342796575,1732143038643,-258.04941281,0.0003,2]
[342796577,1732143038653,-3000.0,0.0003,2]
[342796579,1732143038662,-151.0,0.0003,120]
[342796581,1732143038671,-250.0,0.00031,2]
[342796583,1732143038681,-155.07,0.0003272,2]
[342796585,1732143038690,-300.0,0.00033,2]
[342796586,1732143038699,-966.63288428,0.00034368,6]
[342796587,1732143038708,-191.15,0.00034549,2]
[342796588,1732143038718,-176.09,0.00034549,2]
[342796589,1732143038727,-1108.459,0.0003485,40]
[342796590,1732143038737,-350.0,0.00035,2]
[342796591,1732143038747,-3000.0,0.00035,2]
[342796592,1732143038757,-2742.28,0.00035306,10]
[342796593,1732143038766,-1929.43646411,0.00035316,2]
[342796594,1732143038776,-9506.74689895,0.00035316,2]
[342796595,1732143038785,-1899.0,0.00035316,35]
[342796596,1732143038795,-1942.65,0.00035316,65]
[342796597,1732143038806,-220.0,0.00035316,120]
[342796598,1732143038817,-400.0,0.00037,2]
[342796599,1732143038827,-250.0,0.0003824,2]
[342796600,1732143038838,-1000.0,0.00038263,2]
[342796601,1732143038847,-195.88,0.00038263,2]
[342796602,1732143038858,-2751.0,0.00038334,120]
[342796603,1732143038870,-151.0,0.00038575,120]
[342796604,1732143038879,-450.0,0.00039,2]
[342796605,1732143038889,-200.01,0.00039127,120]
[342796606,1732143038898,-200.0,0.00039168,2]
[342796608,1732143038908,-250.0,0.00039422,2]
[342796609,1732143038919,-1500.0,0.00039562,120]
[342796610,1732143038941,-150.0,0.00039774,2]
[342796611,1732143038961,-773.97,0.00039826,2]
[342796612,1732143038975,-2067.47,0.00039852,2]
[342796613,1732143038988,-191.15,0.00040952,2]
[342796614,1732143039000,-176.09,0.00040952,2]
[342796615,1732143039013,-500.0,0.00041,2]
[342796616,1732143039025,-224.14,0.00041096,2]
[342796617,1732143039039,-250.0,0.00041192,2]
[342796618,1732143039053,-363.0,0.000419,30]
[342796619,1732143039067,-208.91,0.000423,2]
[342796620,1732143039081,-150.68,0.00042512,2]
[342796621,1732143039094,-550.0,0.00043,2]
[342796622,1732143039104,-1000.0,0.00043046,2]
[342796623,1732143039117,-199.88,0.00043295,120]
[342796624,1732143039129,-208.91,0.0004367,2]
[342796625,1732143039142,-2000.0,0.00043675,120]
[342796626,1732143039155,-22089.43586782,0.000437,120]
[342796627,1732143039168,-200.0,0.0004496,120]
[342796628,1732143039181,-17728.343801,0.00045,30]
[342796629,1732143039194,-600.0,0.00045,2]
[342796630,1732143039208,-800.0,0.00045,120]
[342796631,1732143039221,-176.309,0.00046,100]
[342796632,1732143039233,-150.68,0.00046422,2]
[342796633,1732143039246,-650.0,0.00047,2]
[342796634,1732143039257,-151.0,0.00047151,120]
[342796635,1732143039269,-191.15,0.00047354,2]
[342796636,1732143039281,-176.09,0.00047354,2]
[342796637,1732143039295,-5181.87262455,0.000476,2]
[342796638,1732143039306,-31976.76826956,0.000476,30]
[342796639,1732143039317,-1000.0,0.00047829,2]
[342796640,1732143039328,-800.0,0.00048016,120]
[342796641,1732143039338,-176.318,0.0004872,120]
[342796642,1732143039349,-285.9453475,0.00048742,2]
[342796643,1732143039363,-285.9453475,0.00048745,2]
[342796644,1732143039378,-285.9453475,0.00048772,2]
[342796645,1732143039389,-285.9453475,0.00048789,2]
[342796646,1732143039399,-285.9453475,0.00048792,2]
[342796647,1732143039409,-285.9453475,0.00048814,2]
[342796648,1732143039421,-285.9453475,0.00048939,2]
[342796649,1732143039434,-285.9453475,0.0004899,2]
[342796650,1732143039460,-700.0,0.00049,2]
[342796651,1732143039479,-30000.0,0.000495,4]
[342796652,1732143039491,-800.0,0.00049582,120]
[342796653,1732143039505,-1715.6720855,0.0004966,45]
[342796654,1732143039518,-1715.6720855,0.0004974,45]
[342796655,1732143039531,-1525.04185377,0.00049758,3]
[342796656,1732143039545,-1525.04185377,0.0004978,3]
[342796657,1732143039557,-1000.0,0.000498,120]
[342796658,1732143039582,-1410.66371473,0.0004986,4]
[342796659,1732143039595,-1410.66371473,0.00049869,4]
[342796660,1732143039607,-1410.66371473,0.00049875,4]
[342796661,1732143039619,-1410.66371473,0.0004989,4]
[342796662,1732143039633,-1410.66371473,0.00049905,4]
[342796663,1732143039646,-1410.66371473,0.00049958,4]
[342796664,1732143039658,-600.0,0.00049964,18]
[342796665,1732143039670,-600.0,0.00049964,18]
[342796666,1732143039682,-600.0,0.00049964,18]
[342796667,1732143039695,-600.0,0.00049964,18]
[342796668,1732143039707,-600.0,0.00049964,18]
[342796669,1732143039719,-600.0,0.00049964,18]
[342796670,1732143039732,-600.0,0.00049964,18]
[342796671,1732143039744,-600.0,0.00049964,18]
[342796672,1732143039757,-600.0,0.00049964,18]
[342796673,1732143039770,-600.0,0.00049964,18]
[342796674,1732143039784,-600.0,0.00049964,38]
[342796675,1732143039796,-600.0,0.00049964,18]
[342796676,1732143039807,-600.0,0.00049964,18]
[342796677,1732143039820,-600.0,0.00049964,18]
[342796678,1732143039831,-600.0,0.00049964,18]
[342796679,1732143039843,-600.0,0.00049964,18]
[342796680,1732143039854,-600.0,0.00049964,18]
[342796681,1732143039867,-600.0,0.00049964,18]
[342796682,1732143039879,-600.0,0.00049964,18]
[342796683,1732143039890,-332.15886836,0.00049964,18]
[342796684,1732143039903,-1525.04185377,0.00049988,3]
[342796685,1732143039916,-1592.08,0.0005,120]
[342796686,1732143039928,-12227.89,0.0005,120]
[342796687,1732143039940,-1358.9,0.0005,120]
[342796688,1732143039953,-12500.0,0.0005,120]
[342796689,1732143039964,-155.07,0.00050098,2]
[342796690,1732143039976,-12500.0,0.0005025,120]
[342796691,1732143039990,-150.68,0.00050333,2]
[342796692,1732143040002,-12500.0,0.000505,120]
[342796693,1732143040014,-248.91,0.0005075,120]
[342796694,1732143040027,-19600.0,0.000509,120]
[342796695,1732143040039,-282701.35761858,0.00051,120]
[342796696,1732143040051,-750.0,0.00051,2]
[342796697,1732143040063,-150.0,0.000511,120]
[342796698,1732143040076,-800.0,0.00051216,120]
[342796699,1732143040088,-176.274,0.0005144,120]
[342796700,1732143040099,-5513.56,0.00051999,2]
[342796701,1732143040111,-900.0,0.00052,53]
[342796702,1732143040123,-1167.7293251,0.00052027,90]
[342796703,1732143040135,-1167.7293251,0.00052027,90]
[342796704,1732143040147,-1167.7293251,0.00052027,90]
[342796705,1732143040159,-1167.7293251,0.00052027,90]
[342796706,1732143040171,-1167.7293251,0.00052027,90]
[342796708,1732143040182,-1167.7293251,0.00052027,90]
[342796709,1732143040196,-1167.7293251,0.00052027,90]
[342796710,1732143040208,-1167.7293251,0.00052027,90]
[342796711,1732143040220,-1167.7293251,0.00052027,90]
[342796712,1732143040234,-1167.7283251,0.00052027,90]
[342796713,1732143040245,-2335.45965017,0.00052027,90]
[342796714,1732143040257,-2335.45865019,0.00052027,90]
[342796715,1732143040269,-7006.37595057,0.00052027,90]
[342796716,1732143040281,-524.65743686,0.00052027,90]
[342796717,1732143040294,-170.818802,0.00052279,30]
[342796718,1732143040305,-194.318123,0.00052279,30]
[342796719,1732143040317,-1000.0,0.00052612,120]
[342796720,1732143040329,-3000.0,0.000529,2]
[342796721,1732143040341,-800.0,0.00053,2]
[342796722,1732143040352,-255.15,0.00053,30]
[342796723,1732143040363,-200.0,0.00053,120]
[342796724,1732143040375,-900.0,0.00053,54]
[342796725,1732143040389,-2045.63,0.00053,30]
[342796726,1732143040401,-1257.09,0.00053288,30]
[342796727,1732143040412,-191.15,0.00053756,2]
[342796728,1732143040423,-176.09,0.00053756,2]
[342796729,1732143040434,-21999.99999999,0.000538,120]
[342796730,1732143040446,-248640.9666382,0.00054,120]
[342796731,1732143040458,-22000.0,0.00054,120]
[342796732,1732143040470,-58000.0,0.00054,120]
[342796734,1732143040482,-900.0,0.00054,55]
[342796736,1732143040493,-217.1,0.00054,120]
[342796738,1732143040504,-217.1,0.00054,120]
[342796740,1732143040515,-217.1,0.00054,120]
[342796742,1732143040526,-217.1,0.00054,120]
[342796745,1732143040538,-217.1,0.00054,120]
[342796748,1732143040549,-217.1,0.00054,120]
[342796750,1732143040560,-217.1,0.00054,120]
[342796752,1732143040571,-217.1,0.00054,120]
[342796754,1732143040581,-217.1,0.00054,120]
[342796756,1732143040592,-217.1,0.00054,120]
[342796758,1732143040604,-217.1,0.00054,120]
[342796761,1732143040615,-217.1,0.00054,120]
[342796763,1732143040629,-217.1,0.00054,120]
[342796765,1732143040640,-217.1,0.00054,120]
[342796767,1732143040651,-217.1,0.00054,120]
[342796770,1732143040663,-217.1,0.00054,120]
[342796772,1732143040674,-217.1,0.00054,120]
[342796774,1732143040687,-217.1,0.00054,120]
[342796776,1732143040698,-217.1,0.00054,120]
[342796778,1732143040709,-217.1,0.00054,120]
[342796781,1732143040720,-217.1,0.00054,120]
[342796783,1732143040732,-217.1,0.00054,120]
[342796785,1732143040744,-217.1,0.00054,120]
[342796787,1732143040756,-217.1,0.00054,120]
[342796789,1732143040767,-217.1,0.00054,120]
[342796791,1732143040779,-217.1,0.00054,120]
[342796793,1732143040791,-217.1,0.00054,120]
[342796795,1732143040803,-217.1,0.00054,120]
[342796797,1732143040815,-217.1,0.00054,120]
[342796799,1732143040826,-217.1,0.00054,120]
[342796801,1732143040837,-217.1,0.00054,120]
[342796803,1732143040848,-217.1,0.00054,120]
[342796805,1732143040859,-217.1,0.00054,120]
[342796807,1732143040874,-217.1,0.00054,120]
[342796809,1732143040887,-217.1,0.00054,120]
[342796812,1732143040899,-217.1,0.00054,120]
[342796814,1732143040909,-217.1,0.00054,120]
[342796815,1732143040920,-217.1,0.00054,120]
[342796818,1732143040931,-217.1,0.00054,120]
[342796819,1732143040943,-217.1,0.00054,120]
[342796822,1732143040955,-217.1,0.00054,120]
[342796824,1732143040965,-217.1,0.00054,120]
[342796826,1732143040977,-217.1,0.00054,120]
[342796828,1732143040988,-217.1,0.00054,120]
[342796829,1732143040999,-217.1,0.00054,120]
[342796831,1732143041011,-217.1,0.00054,120]
[342796833,1732143041022,-217.1,0.00054,120]
[342796835,1732143041033,-217.1,0.00054,120]
[342796836,1732143041044,-217.1,0.00054,120]
[342796837,1732143041055,-217.1,0.00054,120]
[342796838,1732143041066,-217.1,0.00054,120]
[342796839,1732143041079,-217.1,0.00054,120]
[342796840,1732143041090,-217.1,0.00054,120]
[342796841,1732143041101,-217.1,0.00054,120]
[342796842,1732143041112,-217.1,0.00054,120]
[342796843,1732143041124,-217.1,0.00054,120]
[342796844,1732143041137,-217.1,0.00054,120]
[342796845,1732143041148,-217.1,0.00054,120]
[342796846,1732143041160,-217.1,0.00054,120]
[342796847,1732143041172,-217.1,0.00054,120]
[342796848,1732143041184,-217.1,0.00054,120]
[342796849,1732143041195,-217.1,0.00054,120]
[342796850,1732143041207,-217.1,0.00054,120]
[342796851,1732143041218,-217.1,0.00054,120]
[342796852,1732143041230,-217.1,0.00054,120]
[342796853,1732143041242,-217.1,0.00054,120]
[342796854,1732143041253,-217.1,0.00054,120]
[342796855,1732143041265,-217.1,0.00054,120]
[342796856,1732143041276,-217.1,0.00054,120]
[342796857,1732143041287,-217.1,0.00054,120]
[342796858,1732143041299,-217.1,0.00054,120]
[342796859,1732143041310,-217.1,0.00054,120]
[342796860,1732143041321,-217.1,0.00054,120]
[342796861,1732143041333,-217.1,0.00054,120]
[342796862,1732143041344,-217.1,0.00054,120]
[342796863,1732143041355,-217.1,0.00054,120]
[342796864,1732143041367,-217.1,0.00054,120]
[342796865,1732143041379,-217.1,0.00054,120]
[342796866,1732143041390,-217.1,0.00054,120]
[342796867,1732143041401,-217.1,0.00054,120]
[342796868,1732143041413,-217.1,0.00054,120]
[342796869,1732143041424,-217.1,0.00054,120]
[342796870,1732143041435,-217.1,0.00054,120]
[342796871,1732143041447,-217.1,0.00054,120]
[342796872,1732143041458,-217.1,0.00054,120]
[342796873,1732143041469,-217.1,0.00054,120]
[342796874,1732143041481,-217.1,0.00054,120]
[342796875,1732143041492,-217.1,0.00054,120]
[342796876,1732143041504,-217.1,0.00054,120]
[342796877,1732143041516,-217.1,0.00054,120]
[342796878,1732143041527,-217.1,0.00054,120]
[342796879,1732143041539,-217.1,0.00054,120]
[342796880,1732143041550,-217.1,0.00054,120]
[342796881,1732143041561,-217.1,0.00054,120]
[342796882,1732143041572,-217.1,0.00054,120]
[342796883,1732143041584,-217.1,0.00054,120]
[342796884,1732143041595,-217.1,0.00054,120]
[342796885,1732143041606,-217.1,0.00054,120]
[342796886,1732143041617,-217.1,0.00054,120]
[342796887,1732143041629,-204.0,0.0005405,30]
[342796888,1732143041640,-1054.0,0.0005415,30]
[342796889,1732143041651,-176.257,0.0005416,120]
[342796890,1732143041663,-150.68,0.00054243,2]
[342796891,1732143041675,-32107.78,0.000547,120]
[342796892,1732143041686,-355.7,0.0005479,120]
[342796893,1732143041698,-7000.0,0.00054792,120]
[342796894,1732143041710,-1230.51542116,0.00054793,90]
[342796895,1732143041721,-558.40981512,0.00054794,120]
[342796896,1732143041734,-500.0,0.00054794,120]
[342796897,1732143041745,-500.0,0.00054794,120]
[342796898,1732143041757,-500.0,0.00054794,120]
[342796899,1732143041768,-186.75852908,0.00054794,120]
[342796900,1732143041780,-500.0,0.00054794,120]
[342796901,1732143041792,-502.40567818,0.00054794,120]
[342796902,1732143041803,-500.0,0.00054794,120]
[342796903,1732143041815,-500.0,0.00054794,120]
[342796904,1732143041826,-500.0,0.00054794,120]
[342796905,1732143041838,-500.0,0.00054794,120]
[342796906,1732143041849,-500.0,0.00054794,120]
[342796907,1732143041861,-949.28,0.00054794,120]
[342796908,1732143041877,-588.18,0.00054794,120]
[342796909,1732143041888,-500.0,0.00054794,120]
[342796910,1732143041899,-500.0,0.00054794,120]
[342796911,1732143041911,-538.14273812,0.00054794,120]
[342796912,1732143041923,-523.24202382,0.00054794,120]
[342796913,1732143041934,-500.0,0.00054794,120]
[342796914,1732143041947,-500.0,0.00054794,120]
[342796915,1732143041959,-500.0,0.00054794,120]
[342796916,1732143041971,-500.0,0.00054794,120]
[342796917,1732143041982,-500.0,0.00054794,120]
[342796918,1732143041994,-500.0,0.00054794,120]
[342796919,1732143042006,-500.0,0.00054794,120]
[342796920,1732143042018,-216.87,0.00054794,7]
[342796921,1732143042029,-500.0,0.00054794,120]
[342796922,1732143042041,-500.0,0.00054794,120]
[342796923,1732143042052,-1647.84,0.00054794,120]
[342796924,1732143042063,-500.0,0.00054794,120]
[342796925,1732143042073,-672.22,0.00054794,120]
[342796926,1732143042085,-901.77,0.00054794,120]
[342796927,1732143042096,-500.0,0.00054794,120]
[342796928,1732143042107,-749.97,0.00054794,120]
[342796929,1732143042119,-500.0,0.00054794,120]
[342796930,1732143042130,-500.0,0.00054794,120]
[342796931,1732143042141,-1584.28,0.00054794,120]
[342796932,1732143042152,-500.0,0.00054794,120]
[342796933,1732143042162,-500.0,0.00054794,120]
[342796934,1732143042173,-500.0,0.00054794,120]
[342796935,1732143042184,-500.0,0.00054794,120]
[342796936,1732143042871,-500.0,0.00054794,120]
[342796937,1732143042897,-698.15,0.00054794,120]
[342796938,1732143042921,-500.0,0.00054794,120]
[342796939,1732143042945,-500.0,0.00054794,120]
[342796940,1732143042966,-500.0,0.00054794,120]
[342796941,1732143042976,-500.0,0.00054794,120]
[342796942,1732143042986,-500.0,0.00054794,120]
[342796943,1732143042995,-500.0,0.00054794,120]
[342796944,1732143043004,-500.0,0.00054794,120]
[342796945,1732143043014,-500.0,0.00054794,120]
[342796946,1732143043023,-500.0,0.00054794,120]
[342796947,1732143043033,-500.0,0.00054794,120]
[342796948,1732143043043,-500.0,0.00054794,120]
[342796950,1732143043052,-500.0,0.00054794,120]
[342796951,1732143043061,-550.21,0.00054794,120]
[342796952,1732143043071,-522.67982005,0.00054794,120]
[342796953,1732143043080,-2000.0,0.00054794,30]
[342796954,1732143043091,-838.1,0.00054794,120]
[342796955,1732143043100,-500.20668371,0.00054794,120]
[342796956,1732143043111,-500.0,0.00054794,120]
[342796957,1732143043120,-500.0,0.00054794,120]
[342796958,1732143043132,-500.0,0.00054794,120]
[342796959,1732143043141,-500.0,0.00054794,120]
[342796960,1732143043150,-500.0,0.00054794,120]
[342796961,1732143043160,-678.26,0.00054794,120]
[342796962,1732143043170,-500.0,0.00054794,120]
[342796963,1732143043179,-500.0,0.00054794,120]
[342796964,1732143043189,-500.0,0.00054794,120]
[342796965,1732143043198,-500.0,0.00054794,120]
[342796966,1732143043209,-500.27113357,0.00054794,120]
[342796967,1732143043219,-528.71,0.00054794,120]
[342796968,1732143043230,-577.89,0.00054794,120]
[342796969,1732143043239,-1058.89,0.00054794,120]
[342796970,1732143043249,-300.0,0.00054794,120]
[342796971,1732143043258,-500.0,0.00054794,120]
[342796972,1732143043268,-500.0,0.00054794,120]
[342796973,1732143043277,-500.0,0.00054794,120]
[342796974,1732143043286,-500.0,0.00054794,120]
[342796975,1732143043296,-500.0,0.00054794,120]
[342796976,1732143043305,-500.0,0.00054794,120]
[342796977,1732143043314,-500.0,0.00054794,120]
[342796978,1732143043324,-500.0,0.00054794,120]
[342796979,1732143043334,-516.05,0.00054794,120]
[342796980,1732143043344,-520.97318809,0.00054794,120]
[342796981,1732143043353,-500.0,0.00054794,120]
[342796982,1732143043362,-1582.8,0.00054794,120]
[342796983,1732143043372,-512.91,0.00054794,120]
[342796984,1732143043383,-910.7,0.00054794,120]
[342796985,1732143043392,-500.0,0.00054794,120]
[342796986,1732143043401,-500.0,0.00054794,120]
[342796987,1732143043411,-686.07,0.00054794,120]
[342796988,1732143043422,-500.0,0.00054794,120]
[342796989,1732143043431,-718.84,0.00054794,120]
[342796990,1732143043440,-500.0,0.00054794,120]
[342796991,1732143043449,-500.0,0.00054794,120]
[342796992,1732143043458,-566.64,0.00054794,120]
[342796993,1732143043469,-500.0,0.00054794,120]
[342796994,1732143043479,-500.0,0.00054794,120]